[Event "MČR 2022 blesk"]
[Site "Turnov, Czech Republic"]
[Date "2022.09.10"]
[Round "9.1"]
[White "Buchcar, Tomas"]
[Black "Plat, Vojtech"]
[Result "0-1"]
[TimeControl "2x 3 min + 2s/move"]
[WhiteElo "2124"]
[BlackElo "2484"]

1. e4 {[%clk 00:03:02]} d6 {[%clk 00:03:04]} 2. d4 Nf6 3. Nc3 {[%clk 00:03:01]}
e5 {[%clk 00:03:07]} 4. Nf3 {[%clk 00:03:00]} Nbd7 {[%clk 00:03:08]} 5. h3
{[%clk 00:02:57]} Be7 {[%clk 00:03:08]} 6. Be3 {[%clk 00:02:58]} O-O {[%clk
00:03:09]} 7. Be2 {[%clk 00:02:37]} c6 {[%clk 00:03:09]} 8. O-O {[%clk
00:02:34]} {[%emt 00:00:17]} b5 {[%clk 00:03:11]} 9. a3 {[%clk 00:02:33]}
{[%emt 00:00:05]} a6 {[%clk 00:03:12]} 10. Re1 {[%clk 00:02:25]} Bb7 {[%clk
00:03:13]} 11. Bf1 {[%clk 00:01:52]} {[%emt 00:00:29]} Re8 {[%clk 00:03:14]} 12.
Qd2 {[%clk 00:01:44]} Bf8 {[%clk 00:03:15]} 13. Rad1 {[%clk 00:01:44]} exd4
{[%clk 00:03:07]} {[%emt 00:01:06]} 14. Bxd4 {[%clk 00:01:44]} c5 {[%clk
00:03:06]} 15. Bxf6 {[%clk 00:01:43]} Nxf6 {[%clk 00:03:07]} 16. Qf4 {[%clk
00:01:24]} Qc7 {[%clk 00:02:35]} {[%emt 00:00:05]} 17. g3 {[%clk 00:00:46]}
{[%emt 00:00:30]} b4 {[%clk 00:02:34]} {[%emt 00:00:06]} 18. Nd5 {[%clk
00:00:42]} {[%emt 00:00:05]} Nxd5 {[%clk 00:02:30]} {[%emt 00:00:07]} 19. exd5
{[%clk 00:00:42]} {[%emt 00:00:13]} Rxe1 {[%clk 00:02:29]} 20. Nxe1 {[%clk
00:00:43]} bxa3 {[%clk 00:02:27]} {[%emt 00:00:09]} 21. bxa3 {[%clk 00:00:44]}
Re8 {[%clk 00:02:25]} 22. Ng2 {[%clk 00:00:30]} {[%emt 00:00:10]} g6 {[%clk
00:02:05]} {[%emt 00:00:18]} 23. Ne3 {[%clk 00:00:29]} {[%emt 00:00:11]} Bg7
{[%clk 00:02:06]} 24. Nc4 {[%clk 00:00:22]} {[%emt 00:00:06]} Be5 {[%clk
00:01:59]} {[%emt 00:00:05]} 25. Qh4 {[%clk 00:00:16]} {[%emt 00:00:07]} Bd4
{[%clk 00:01:51]} {[%emt 00:00:11]} 26. Qf4 {[%clk 00:00:12]} {[%emt 00:00:05]}
Rd8 {[%clk 00:01:46]} {[%emt 00:00:11]} 27. Bg2 {[%clk 00:00:12]} a5 {[%clk
00:01:31]} {[%emt 00:00:25]} 28. Ne3 {[%clk 00:00:13]} Be5 {[%clk 00:01:26]} 29.
Qf3 {[%clk 00:00:13]} Ba6 {[%clk 00:01:17]} {[%emt 00:00:13]} 30. Ng4 {[%clk
00:00:13]} {[%emt 00:00:05]} Bg7 {[%clk 00:01:15]} {[%emt 00:00:05]} 31. Qf4
{[%clk 00:00:14]} Qe7 {[%clk 00:01:03]} {[%emt 00:00:13]} 32. Bf3 {[%clk
00:00:13]} {[%emt 00:00:05]} h5 {[%clk 00:00:56]} {[%emt 00:00:05]} 33. Ne3
{[%clk 00:00:13]} {[%emt 00:00:07]} Be5 {[%clk 00:00:54]} 34. Qe4 {[%clk
00:00:11]} {[%emt 00:00:05]} Qf6 {[%clk 00:00:39]} {[%emt 00:00:12]} 35. Kg2
{[%clk 00:00:11]} {[%emt 00:00:09]} Bd4 {[%clk 00:00:38]} 36. c4 {[%clk
00:00:08]} {[%emt 00:00:04]} Bc8 {[%clk 00:00:37]} {[%emt 00:00:05]} 37. Qc2
{[%clk 00:00:07]} Bd7 {[%clk 00:00:37]} {[%emt 00:00:04]} 38. Re1 {[%emt
00:00:08]} Kg7 39. Nf1 {[%clk 00:00:05]} Qf5 {[%clk 00:00:35]} {[%emt
00:00:09]} 40. Qxf5 {[%clk 00:00:03]} Bxf5 {[%clk 00:00:36]} 41. Ne3 {[%clk
00:00:03]} Bd7 {[%clk 00:00:32]} {[%emt 00:00:06]} 42. Bd1 {[%clk 00:00:04]}
Rb8 {[%clk 00:00:33]} {[%emt 00:00:04]} 43. Bc2 {[%clk 00:00:03]} Rb2 {[%clk
00:00:34]} {[%emt 00:00:05]} 0-1

[Event "MČR 2022 blesk"]
[Site "Turnov, Czech Republic"]
[Date "2022.09.10"]
[Round "9.5"]
[White "Polak, Tomas"]
[Black "Vichnar, David"]
[Result "1-0"]
[TimeControl "2x 3 min + 2s/move"]
[WhiteElo "2475"]
[BlackElo "2317"]

1. Nf3 {[%clk 00:03:02]} d5 {[%clk 00:03:03]} {[%emt 00:00:04]} 2. c4 {[%clk
00:03:03]} c6 {[%clk 00:03:03]} 3. e3 {[%clk 00:03:04]} Nf6 {[%clk 00:03:03]} 4.
Nc3 {[%clk 00:03:05]} e6 {[%clk 00:03:02]} {[%emt 00:00:05]} 5. b3 {[%clk
00:03:05]} Be7 {[%clk 00:03:02]} 6. Bb2 {[%clk 00:03:06]} O-O {[%clk 00:03:02]}
7. d4 {[%clk 00:03:06]} Nbd7 {[%clk 00:03:01]} {[%emt 00:00:14]} 8. Bd3 {[%clk
00:03:06]} b6 {[%clk 00:03:00]} 9. O-O {[%clk 00:03:03]} Bb7 {[%clk 00:03:01]}
10. Qe2 {[%clk 00:03:00]} c5 {[%clk 00:02:55]} 11. cxd5 {[%clk 00:02:59]}
{[%emt 00:00:04]} exd5 {[%clk 00:02:53]} 12. Rac1 {[%clk 00:02:50]} {[%emt
00:00:07]} Re8 {[%clk 00:02:49]} {[%emt 00:00:04]} 13. Rfd1 {[%clk 00:02:46]}
{[%emt 00:00:17]} Rc8 {[%clk 00:02:37]} {[%emt 00:00:11]} 14. Bb5 {[%clk
00:02:38]} {[%emt 00:00:05]} Bd6 {[%clk 00:02:23]} {[%emt 00:00:17]} 15. h3
{[%clk 00:02:28]} {[%emt 00:00:09]} Qe7 {[%clk 00:02:19]} {[%emt 00:00:06]} 16.
Qd3 {[%clk 00:02:20]} {[%emt 00:00:08]} Ne4 {[%clk 00:01:56]} {[%emt 00:00:26]}
17. dxc5 {[%clk 00:02:04]} {[%emt 00:00:19]} Ndxc5 {[%clk 00:01:43]} {[%emt
00:00:14]} 18. Qd4 {[%clk 00:01:59]} {[%emt 00:00:08]} Red8 {[%clk 00:01:37]}
{[%emt 00:00:11]} 19. Nxe4 {[%clk 00:01:55]} {[%emt 00:00:05]} Ne6 {[%clk
00:01:34]} {[%emt 00:00:10]} 20. Nf6+ {[%clk 00:01:42]} {[%emt 00:00:07]} gxf6
{[%clk 00:01:24]} {[%emt 00:00:12]} 21. Qh4 {[%clk 00:01:36]} {[%emt 00:00:08]}
Ng5 {[%clk 00:01:14]} {[%emt 00:00:13]} 22. Bd3 {[%clk 00:01:15]} {[%emt
00:00:22]} Ne4 {[%clk 00:00:13]} {[%emt 00:01:07]} 23. Bxe4 {[%clk 00:01:13]}
{[%emt 00:00:05]} 1-0

[Event "MČR 2022 blesk"]
[Site "Turnov, Czech Republic"]
[Date "2022.09.10"]
[Round "9.8"]
[White "Jurek, Josef"]
[Black "Pisk, Petr"]
[Result "1/2-1/2"]
[TimeControl "2x 3 min + 2s/move"]
[WhiteElo "2143"]
[BlackElo "2312"]

1. e4 {[%clk 00:03:02]} {[%emt 00:00:01]} e6 {[%clk 00:03:04]} 2. d4 {[%clk
00:03:02]} {[%emt 00:00:04]} d5 {[%clk 00:03:05]} 3. Nc3 {[%clk 00:02:59]} Bb4
{[%clk 00:03:05]} 4. e5 {[%clk 00:02:59]} c5 {[%clk 00:03:04]} 5. a3 {[%clk
00:02:56]} {[%emt 00:00:05]} Bxc3+ {[%clk 00:03:05]} 6. bxc3 {[%clk 00:02:56]}
Qa5 {[%clk 00:03:06]} 7. Bd2 {[%clk 00:02:37]} Qa4 {[%clk 00:03:07]} 8. Nf3
{[%clk 00:02:36]} {[%emt 00:00:04]} Nc6 {[%clk 00:02:59]} 9. Be3 {[%clk
00:02:16]} Nge7 {[%clk 00:02:53]} 10. Bd3 {[%clk 00:01:32]} c4 {[%clk
00:02:53]} 11. Be2 {[%clk 00:01:33]} {[%emt 00:00:05]} Bd7 {[%clk 00:02:55]} 12.
O-O {[%clk 00:01:32]} h6 {[%clk 00:02:48]} 13. Qd2 {[%clk 00:01:17]} O-O-O
{[%clk 00:02:41]} {[%emt 00:00:05]} 14. Rfb1 {[%clk 00:01:18]} b6 {[%clk
00:02:42]} 15. Ne1 {[%clk 00:00:35]} Nf5 {[%clk 00:02:41]} 16. f4 {[%clk
00:00:31]} Rdg8 {[%clk 00:02:39]} 17. Bg4 {[%clk 00:00:28]} {[%emt 00:00:04]}
Nxe3 {[%clk 00:02:34]} 18. Qxe3 {[%clk 00:00:29]} g6 {[%clk 00:02:30]} 19. Qf2
{[%clk 00:00:25]} Ne7 {[%clk 00:02:22]} {[%emt 00:00:04]} 20. Nf3 {[%clk
00:00:25]} Qa5 {[%clk 00:02:13]} 21. Rb4 {[%clk 00:00:25]} Nc6 {[%clk
00:02:13]} 22. Nd2 {[%clk 00:00:12]} {[%emt 00:00:05]} Nxb4 {[%clk 00:02:12]}
23. cxb4 {[%clk 00:00:14]} Qa4 {[%clk 00:02:10]} 24. c3 {[%clk 00:00:13]} Rh7
{[%clk 00:01:54]} 25. Bd1 {[%clk 00:00:14]} {[%emt 00:00:05]} Qa6 {[%clk
00:01:55]} 26. Bc2 {[%clk 00:00:14]} Ba4 {[%clk 00:01:55]} 27. Nf3 {[%clk
00:00:12]} Rhg7 {[%clk 00:01:46]} 28. Kf1 {[%clk 00:00:11]} Bxc2 {[%clk
00:01:46]} {[%emt 00:00:08]} 29. Qxc2 {[%clk 00:00:13]} Qb7 {[%clk 00:01:38]}
30. a4 {[%clk 00:00:13]} a6 {[%clk 00:01:40]} 31. g3 {[%clk 00:00:06]} {[%emt
00:00:07]} Qe7 {[%clk 00:01:39]} 32. a5 {[%clk 00:00:07]} b5 {[%clk 00:01:41]}
33. Ke2 {[%clk 00:00:07]} g5 {[%clk 00:01:42]} 34. Rf1 {[%clk 00:00:06]} gxf4
{[%clk 00:01:42]} {[%emt 00:01:08]} 35. gxf4 {[%clk 00:00:08]} Rg2+ {[%clk
00:01:43]} 36. Rf2 {[%clk 00:00:09]} Rxf2+ {[%clk 00:01:42]} 37. Kxf2 {[%clk
00:00:10]} Qf8 {[%clk 00:01:35]} 38. Qh7 {[%clk 00:00:09]} Qg7 {[%clk
00:01:36]} 39. Qxg7 {[%clk 00:00:10]} Rxg7 {[%clk 00:01:37]} 40. Ne1 {[%clk
00:00:07]} Kd7 {[%clk 00:01:38]} 41. Ng2 {[%clk 00:00:08]} Ke7 {[%clk
00:01:38]} 42. Ne3 {[%clk 00:00:05]} f6 {[%clk 00:01:37]} 43. h4 {[%clk
00:00:04]} fxe5 {[%clk 00:01:35]} 44. dxe5 {[%clk 00:00:04]} Kf7 {[%clk
00:01:31]} 45. Nc2 {[%clk 00:00:04]} Kg6 {[%clk 00:01:32]} 46. Nd4 {[%clk
00:00:05]} Re7 {[%clk 00:01:31]} 47. Kf3 {[%clk 00:00:05]} Kh5 {[%clk
00:01:29]} 48. Kg3 {[%clk 00:00:05]} Kg6 {[%clk 00:01:23]} 49. Kg4 {[%clk
00:00:06]} h5+ {[%clk 00:01:22]} 50. Kf3 {[%clk 00:00:08]} Re8 {[%clk
00:01:21]} 51. Kg3 {[%clk 00:00:07]} Kf7 {[%clk 00:01:22]} 52. Kf3 {[%clk
00:00:05]} Rg8 {[%clk 00:01:23]} 53. Nc6 1/2-1/2

[Event "MČR 2022 blesk"]
[Site "Turnov, Czech Republic"]
[Date "2022.09.10"]
[Round "10.1"]
[White "Plat, Vojtech"]
[Black "Novosadova, Kristyna"]
[Result "1-0"]
[TimeControl "2x 3 min + 2s/move"]
[WhiteElo "2484"]
[BlackElo "2050"]

1. d4 {[%clk 00:03:02]} {[%emt 00:00:09]} Nf6 {[%clk 00:03:03]} 2. Nf3 {[%clk
00:03:03]} g6 {[%clk 00:03:04]} 3. e3 {[%clk 00:03:04]} Bg7 {[%clk 00:03:05]} 4.
c4 {[%clk 00:03:05]} d5 {[%clk 00:03:06]} {[%emt 00:00:08]} 5. Nc3 {[%clk
00:03:05]} O-O {[%clk 00:03:06]} 6. Be2 {[%clk 00:03:06]} {[%emt 00:00:04]} c6
{[%clk 00:03:06]} 7. O-O {[%clk 00:03:06]} Bf5 {[%clk 00:03:04]} {[%emt
00:00:04]} 8. Ne5 {[%clk 00:03:05]} dxc4 {[%clk 00:03:02]} {[%emt 00:00:06]} 9.
Bxc4 {[%clk 00:03:04]} {[%emt 00:00:09]} b5 {[%clk 00:02:38]} {[%emt 00:00:17]}
10. Bb3 {[%clk 00:03:03]} {[%emt 00:00:11]} Qc7 {[%clk 00:02:35]} 11. f4 {[%clk
00:02:43]} {[%emt 00:00:19]} Nbd7 {[%clk 00:02:33]} {[%emt 00:00:17]} 12. Qf3
{[%clk 00:02:41]} Nxe5 {[%clk 00:02:26]} {[%emt 00:00:05]} 13. fxe5 {[%clk
00:02:42]} Nd7 {[%clk 00:02:08]} {[%emt 00:00:20]} 14. Bd2 {[%clk 00:02:33]}
{[%emt 00:00:07]} Bd3 {[%clk 00:01:54]} {[%emt 00:00:16]} 15. Rf2 {[%clk
00:02:32]} {[%emt 00:00:07]} e6 {[%clk 00:01:48]} {[%emt 00:00:06]} 16. Rc1
{[%clk 00:02:31]} {[%emt 00:00:11]} Qb6 {[%clk 00:01:38]} {[%emt 00:00:05]} 17.
Ne4 {[%clk 00:02:22]} {[%emt 00:00:08]} Bxe4 {[%clk 00:01:35]} {[%emt
00:00:06]} 18. Qxe4 {[%clk 00:02:23]} Rac8 {[%clk 00:01:35]} {[%emt 00:00:14]}
19. Rxf7 {[%clk 00:01:50]} {[%emt 00:00:25]} Kxf7 {[%clk 00:01:24]} {[%emt
00:00:12]} 20. Rf1+ {[%clk 00:01:48]} {[%emt 00:00:06]} Ke8 {[%clk 00:01:25]}
{[%emt 00:00:09]} 21. Bxe6 {[%clk 00:01:34]} {[%emt 00:00:06]} Rxf1+ {[%clk
00:01:20]} 22. Kxf1 {[%clk 00:01:36]} Kd8 {[%clk 00:01:07]} {[%emt 00:00:08]}
23. Qf3 {[%clk 00:01:31]} {[%emt 00:00:08]} Kc7 {[%clk 00:01:08]} 24. Ke2
{[%clk 00:01:26]} {[%emt 00:00:10]} Rf8 {[%clk 00:01:06]} {[%emt 00:00:21]} 25.
Qh3 {[%clk 00:01:28]} b4 {[%clk 00:00:51]} 26. Bc4 {[%clk 00:01:16]} {[%emt
00:00:13]} h5 {[%emt 00:00:07]} 27. e6 {[%clk 00:01:15]} {[%emt 00:00:32]} Nf6
{[%clk 00:00:42]} 28. Qg3+ {[%clk 00:01:16]} Kb7 {[%clk 00:00:36]} 29. Qxg6
{[%clk 00:01:17]} Qc7 {[%clk 00:00:35]} 30. Bxb4 {[%clk 00:01:15]} {[%emt
00:00:05]} Rg8 {[%clk 00:00:34]} 31. Bc5 {[%clk 00:00:46]} {[%emt 00:00:32]}
Bh8 {[%clk 00:00:32]} 32. Qf7 {[%clk 00:00:41]} {[%emt 00:00:05]} Rxg2+ {[%clk
00:00:32]} {[%emt 00:00:05]} 33. Kf3 {[%clk 00:00:42]} Rg8 {[%clk 00:00:15]}
{[%emt 00:00:16]} 34. Ba6+ {[%clk 00:00:38]} {[%emt 00:00:05]} Kb8 {[%clk
00:00:10]} {[%emt 00:00:06]} 35. Bd6 {[%clk 00:00:39]} Nd5 {[%clk 00:00:05]}
{[%emt 00:00:14]} 36. Qxg8# {[%clk 00:03:02]} 1-0

[Event "MČR 2022 blesk"]
[Site "Turnov, Czech Republic"]
[Date "2022.09.10"]
[Round "10.5"]
[White "Polak, Tomas"]
[Black "Lajbl, Jan"]
[Result "1-0"]
[TimeControl "2x 3 min + 2s/move"]
[WhiteElo "2475"]
[BlackElo "1969"]

1. Nf3 {[%clk 00:03:02]} {[%emt 00:00:05]} d5 {[%clk 00:03:03]} 2. c4 {[%clk
00:03:03]} d4 {[%clk 00:03:04]} 3. e3 {[%clk 00:03:04]} c5 {[%clk 00:02:58]}
{[%emt 00:00:12]} 4. b4 {[%clk 00:03:04]} dxe3 {[%clk 00:02:51]} {[%emt
00:00:12]} 5. fxe3 {[%clk 00:03:05]} cxb4 {[%clk 00:02:51]} 6. d4 {[%clk
00:03:04]} {[%emt 00:00:07]} Nf6 {[%clk 00:02:49]} 7. Bd3 {[%clk 00:03:05]}
{[%emt 00:00:05]} Bg4 {[%clk 00:02:47]} 8. O-O {[%clk 00:03:02]} {[%emt
00:00:05]} e6 {[%clk 00:02:47]} {[%emt 00:00:04]} 9. Bb2 {[%clk 00:02:55]}
{[%emt 00:00:04]} Bd6 {[%clk 00:02:35]} {[%emt 00:00:14]} 10. Qe1 {[%clk
00:02:53]} {[%emt 00:00:05]} Nbd7 {[%clk 00:02:07]} {[%emt 00:00:29]} 11. Nbd2
{[%clk 00:02:50]} {[%emt 00:00:05]} Qe7 {[%clk 00:02:02]} {[%emt 00:00:13]} 12.
c5 {[%clk 00:02:33]} {[%emt 00:00:23]} Bc7 {[%clk 00:02:00]} 13. Nc4 {[%clk
00:02:32]} Bxf3 {[%clk 00:01:44]} {[%emt 00:00:17]} 14. Rxf3 {[%clk 00:02:31]}
{[%emt 00:00:05]} O-O {[%clk 00:01:26]} {[%emt 00:00:17]} 15. Qh4 {[%clk
00:02:24]} {[%emt 00:00:09]} h6 {[%clk 00:01:05]} {[%emt 00:00:23]} 16. Raf1
{[%clk 00:02:19]} {[%emt 00:00:10]} Nd5 {[%clk 00:00:49]} {[%emt 00:00:14]} 17.
Qh3 {[%clk 00:02:11]} {[%emt 00:00:11]} e5 {[%clk 00:00:43]} {[%emt 00:00:08]}
18. Bf5 {[%clk 00:01:50]} {[%emt 00:00:36]} e4 {[%clk 00:00:33]} {[%emt
00:00:04]} 19. R3f2 {[%clk 00:01:37]} {[%emt 00:00:15]} N7f6 {[%clk 00:00:27]}
{[%emt 00:00:05]} 20. Ne5 {[%clk 00:01:33]} {[%emt 00:00:07]} Nc3 {[%clk
00:00:14]} {[%emt 00:00:11]} 21. Ng4 {[%clk 00:01:16]} {[%emt 00:00:23]} Nxg4
{[%clk 00:00:14]} 22. Qxg4 {[%clk 00:01:16]} Rae8 {[%clk 00:00:06]} {[%emt
00:00:15]} 23. Rc2 {[%clk 00:00:39]} {[%emt 00:00:37]} Nd5 {[%clk 00:00:07]} 24.
Qh3 {[%clk 00:00:29]} {[%emt 00:03:19]} Qg5 {[%clk 00:00:05]} {[%emt 00:01:58]}
25. Re2 {[%clk 00:00:27]} g6 {[%clk 00:00:05]} 26. Bd7 {[%clk 00:00:26]} Re7
{[%clk 00:00:06]} 27. Bb5 {[%clk 00:00:26]} {[%emt 00:00:41]} h5 {[%clk
00:00:04]} 28. Bc4 {[%clk 00:00:26]} Nf6 {[%clk 00:00:04]} 29. Rxf6 {[%clk
00:00:23]} Qxf6 {[%clk 00:00:05]} 30. d5 {[%clk 00:00:24]} Qg5 {[%clk
00:00:05]} 31. d6 {[%clk 00:00:24]} Ree8 {[%clk 00:00:04]} 32. dxc7 {[%clk
00:00:23]} Qxc5 {[%clk 00:00:05]} 33. Bb3 {[%clk 00:00:15]} Qxc7 {[%clk
00:00:05]} 34. Qh4 {[%clk 00:00:15]} 1-0

[Event "MČR 2022 blesk"]
[Site "Turnov, Czech Republic"]
[Date "2022.09.10"]
[Round "11.1"]
[White "Sott, Pavel"]
[Black "Plat, Vojtech"]
[Result "0-1"]
[TimeControl "2x 3 min + 2s/move"]
[WhiteElo "2208"]
[BlackElo "2484"]

1. e4 {[%clk 00:03:02]} {[%emt 00:00:05]} d6 {[%clk 00:03:04]} 2. d4 {[%clk
00:03:03]} Nf6 {[%clk 00:03:05]} 3. Nc3 {[%clk 00:03:04]} {[%emt 00:00:24]} e5
{[%clk 00:03:06]} 4. dxe5 {[%clk 00:03:02]} dxe5 {[%clk 00:03:07]} 5. Qxd8+
{[%clk 00:03:02]} Kxd8 {[%clk 00:03:09]} 6. Bc4 {[%clk 00:03:01]} Be6 {[%clk
00:03:10]} 7. Bxe6 fxe6 {[%clk 00:03:11]} 8. Nge2 {[%clk 00:02:54]} {[%emt
00:00:04]} Nc6 {[%clk 00:03:12]} 9. Bg5 {[%clk 00:02:46]} {[%emt 00:00:14]} Bc5
{[%clk 00:03:12]} 10. O-O-O+ {[%clk 00:02:39]} {[%emt 00:00:04]} Ke7 {[%clk
00:03:13]} 11. f3 {[%clk 00:02:33]} {[%emt 00:00:13]} h6 {[%clk 00:03:14]} 12.
Bxf6+ {[%clk 00:02:16]} {[%emt 00:00:20]} gxf6 {[%clk 00:03:15]} 13. a3 {[%clk
00:02:10]} a6 {[%clk 00:03:16]} {[%emt 00:00:11]} 14. Rd3 {[%clk 00:02:06]}
Rhd8 {[%clk 00:03:15]} 15. Rhd1 {[%clk 00:02:04]} {[%emt 00:00:10]} Rxd3 {[%clk
00:03:16]} 16. Rxd3 {[%clk 00:02:02]} b5 {[%clk 00:03:16]} 17. Kd2 {[%clk
00:01:58]} {[%emt 00:00:15]} Bb6 {[%clk 00:03:16]} 18. Ke1 {[%clk 00:01:51]}
{[%emt 00:00:05]} Nd4 {[%clk 00:03:15]} {[%emt 00:00:05]} 19. Nxd4 {[%clk
00:01:50]} {[%emt 00:00:04]} exd4 {[%clk 00:03:16]} 20. Ne2 {[%clk 00:01:44]}
{[%emt 00:00:05]} e5 {[%clk 00:03:17]} 21. f4 {[%clk 00:01:43]} {[%emt
00:00:08]} Rg8 {[%clk 00:03:13]} 22. fxe5 {[%clk 00:01:34]} {[%emt 00:00:11]}
fxe5 {[%clk 00:03:12]} {[%emt 00:00:07]} 23. Rg3 {[%clk 00:01:32]} {[%emt
00:00:04]} Rd8 {[%clk 00:02:47]} {[%emt 00:00:23]} 24. Rg6 {[%clk 00:01:30]}
{[%emt 00:00:10]} d3 {[%clk 00:02:47]} 25. cxd3 {[%clk 00:01:26]} {[%emt
00:00:04]} Rxd3 {[%clk 00:02:49]} 26. Ng3 {[%clk 00:01:24]} {[%emt 00:00:05]}
Rb3 {[%clk 00:02:45]} {[%emt 00:00:06]} 27. Nf5+ {[%clk 00:01:16]} {[%emt
00:00:36]} Kf7 {[%clk 00:02:47]} 28. Rxh6 {[%clk 00:01:13]} Rxb2 {[%clk
00:02:47]} 29. g4 {[%clk 00:01:09]} Rg2 {[%clk 00:02:35]} 30. Rh7+ {[%clk
00:00:50]} {[%emt 00:00:21]} Kf6 {[%clk 00:02:26]} {[%emt 00:00:24]} 31. Rh6+
{[%clk 00:00:45]} Kg5 {[%clk 00:02:16]} {[%emt 00:00:05]} 32. h4+ {[%clk
00:00:45]} Kf4 {[%clk 00:02:16]} {[%emt 00:00:06]} 33. g5 {[%clk 00:00:41]}
{[%emt 00:00:10]} Kxe4 {[%clk 00:02:16]} 34. Ne7 {[%clk 00:00:38]} {[%emt
00:00:07]} Kd3 {[%clk 00:02:11]} {[%emt 00:00:05]} 35. Rf6 {[%clk 00:00:38]}
Rg4 {[%clk 00:02:06]} {[%emt 00:00:05]} 36. Nd5 {[%clk 00:00:36]} {[%emt
00:00:06]} Bd4 {[%clk 00:01:36]} {[%emt 00:00:33]} 37. g6 {[%clk 00:00:35]}
Rg1+ {[%clk 00:01:35]} {[%emt 00:00:07]} 38. Rf1 {[%clk 00:00:36]} Rxg6 {[%clk
00:01:36]} 39. h5 {[%clk 00:00:32]} {[%emt 00:00:06]} Rh6 {[%clk 00:01:35]}
{[%emt 00:00:05]} 40. Rh1 {[%clk 00:00:33]} c5 {[%clk 00:01:32]} {[%emt
00:00:05]} 41. Ne7 {[%clk 00:00:31]} {[%emt 00:00:03]} e4 {[%clk 00:01:29]}
{[%emt 00:00:05]} 42. Nf5 {[%clk 00:00:31]} Rf6 {[%clk 00:01:26]} {[%emt
00:00:04]} 43. Ne7 {[%clk 00:00:28]} {[%emt 00:00:04]} e3 {[%clk 00:01:25]}
{[%emt 00:00:07]} 44. h6 {[%clk 00:00:28]} {[%emt 00:00:04]} Bc3+ {[%clk
00:01:26]} 45. Kd1 {[%clk 00:00:27]} {[%emt 00:00:04]} Rf1+ {[%clk 00:01:26]}
0-1

[Event "MČR 2022 blesk"]
[Site "Turnov, Czech Republic"]
[Date "2022.09.10"]
[Round "11.3"]
[White "Blecha, Miroslav"]
[Black "Balacek, Tadeas"]
[Result "1-0"]
[TimeControl "2x 3 min + 2s/move"]
[WhiteElo "2013"]
[BlackElo "2257"]

1. d4 {[%clk 00:03:01]} d6 {[%clk 00:03:02]} 2. Nf3 {[%clk 00:03:01]} {[%emt
00:00:09]} Nf6 {[%clk 00:03:03]} 3. c4 {[%clk 00:03:02]} g6 {[%clk 00:03:04]} 4.
Nc3 {[%clk 00:03:02]} Bg7 {[%clk 00:02:54]} 5. Bg5 {[%clk 00:03:03]} c5 {[%clk
00:02:22]} {[%emt 00:00:54]} 6. d5 {[%clk 00:03:03]} O-O {[%clk 00:02:12]} 7.
e3 {[%clk 00:03:03]} Na6 {[%clk 00:02:11]} 8. h3 {[%clk 00:02:58]} Nc7 {[%clk
00:02:10]} 9. a4 {[%clk 00:02:57]} Na6 {[%clk 00:02:01]} 10. Be2 {[%clk
00:02:50]} Nb4 {[%clk 00:02:02]} 11. e4 {[%clk 00:02:31]} a6 {[%clk 00:02:03]}
12. O-O {[%clk 00:02:30]} Qc7 {[%clk 00:02:03]} 13. Re1 {[%clk 00:02:26]} e5
{[%clk 00:02:04]} 14. dxe6 {[%clk 00:02:15]} Bxe6 {[%clk 00:01:43]} {[%emt
00:00:27]} 15. Qd2 {[%clk 00:02:04]} Rad8 {[%clk 00:01:42]} 16. Bf1 {[%clk
00:01:53]} Rd7 {[%clk 00:01:40]} 17. Nd5 {[%clk 00:01:33]} Bxd5 {[%clk
00:01:40]} {[%emt 00:00:54]} 18. exd5 {[%clk 00:01:33]} Re7 {[%clk 00:01:22]}
19. Rxe7 {[%clk 00:01:33]} Qxe7 {[%clk 00:01:23]} 20. Re1 {[%clk 00:01:34]} Qd7
{[%clk 00:01:25]} 21. b3 {[%clk 00:01:28]} {[%emt 00:00:05]} Re8 {[%clk
00:01:26]} 22. Qf4 {[%clk 00:00:42]} Rxe1 {[%clk 00:01:09]} 23. Nxe1 {[%clk
00:00:43]} Nh5 {[%clk 00:01:11]} 24. Qe4 {[%clk 00:00:33]} Nf6 {[%clk
00:00:50]} 25. Qe2 {[%clk 00:00:28]} h6 26. Bf4 {[%clk 00:00:28]} Nh5 {[%clk
00:00:48]} 27. Bh2 {[%clk 00:00:28]} Qf5 {[%clk 00:00:40]} 28. g4 {[%clk
00:00:25]} Qg5 {[%clk 00:00:38]} 29. h4 {[%clk 00:00:20]} Qxh4 {[%clk
00:00:32]} 30. gxh5 {[%clk 00:00:20]} {[%emt 00:00:13]} g5 {[%clk 00:00:16]} 31.
Bxd6 {[%clk 00:00:16]} Qd4 {[%clk 00:00:17]} 32. Bg3 {[%clk 00:00:14]} Bf6
{[%clk 00:00:14]} 33. Nf3 {[%clk 00:00:14]} Qc3 {[%clk 00:00:13]} 34. Be5
{[%clk 00:00:14]} Bxe5 {[%clk 00:00:10]} 35. Nxe5 {[%clk 00:00:15]} Qd4 {[%clk
00:00:06]} 36. Nf3 {[%clk 00:00:14]} b5 {[%clk 00:00:05]} 37. Nxd4 {[%clk
00:00:14]} 1-0